[Event "83rd ESP-ch Women-ch 2018"]
[Site "Linares"]
[Date "2018.08.22"]
[Round "3"]
[White "Lopez Guerrero, Jose Miguel"]
[Black "Fernandez Garcia, Francisco Jose"]
[Result "1-0"]
[ECO "B31"]
[WhiteElo "2148"]
[BlackElo "1835"]
[Annotator "NA"]
[PlyCount "115"]
[EventDate "2018.08.09"]
[EventType "tourn"]
[EventCountry "ESP"]
[SourceTitle "playchess.com"]
[Source "ChessBase"]
[SourceQuality "1"]
[TimeControl "40/5400+30:1800+30"]

1. e4 {[%emt 0:00:00]} c5 {[%emt 0:00:00]} 2. Nf3 {[%emt 0:00:00]} Nc6 {[%emt 0:00:00]} 3. Bb5 {[%emt 0:00:02]} g6 {[%emt 0:00:00]} 4. O-O {[%emt 0:00:22]} Bg7 {[%emt 0:00:07]} 5. d3 {[%emt 0:00:24]} Qc7 {[%emt 0:04:35] B31: Sicilian: 2...Nc6 3 Bb5 g6} (5... d6 6. Re1 Bd7 7. c3 Nf6 8. d4 O-O 9. Bxc6 Bxc6 10. d5 Bd7 11. h3 b5 12. a4 b4 13. e5 dxe5 14. Nxe5 {½-½ (70) Zvjaginsev,V (2643)-Dubov,D (2666) Sochi 2017}) 6. Nc3 {[%emt 0:01:09]} a6 {[%emt 0:03:02]} 7. Nd5 {[%emt 0:02:07]} Qd8 {[%emt 0:02:16]} 8. Ba4 $146 {[%emt 0:02:13]} ({Predecessor:} 8. Bxc6 bxc6 9. Ne3 Nf6 10. e5 Nd5 11. Nc4 O-O 12. Bd2 f6 13. Ba5 {0-1 (42) Zhou,S (2229)-Pileckis,E (2438) Pardubice 2010}) 8... Nf6 {[%emt 0:01:37]} 9. Nxf6+ {[%emt 0:02:44]} Bxf6 {[%emt 0:02:00]} 10. Bh6 {[%emt 0:00:18]} Ne5 {[%emt 0:04:18]} 11. Nxe5 {[%emt 0:01:09]} Bxe5 {[%emt 0:00:11]} 12. c3 {[%emt 0:00:19]} b5 {[%emt 0:02:11]} 13. Bc2 {[%emt 0:00:58]} Qb6 {[%emt 0:05:15]} 14. f4 {[%emt 0:01:15]} Bc7 {[%emt 0:01:28]} 15. Kh1 {[%emt 0:10:21]} Bb7 {[%emt 0:01:49]} 16. d4 {[%emt 0:01:02]} f5 {[%emt 0:04:21]} 17. exf5 {[%emt 0:07:02]} O-O-O {[%emt 0:02:29]} 18. d5 {[%emt 0:09:10]} gxf5 {[%emt 0:01:09]} 19. Bg5 {[%emt 0:00:12]} Qg6 {[%emt 0:01:45]} 20. Bxe7 {[%emt 0:02:38]} Rhg8 {[%emt 0:03:29]} 21. Qd2 {[%emt 0:00:25]} Rde8 {[%emt 0:00:25]} 22. Bxc5 {[%emt 0:05:47]} Qh5 {[%emt 0:08:37]} 23. Bd1 {[%emt 0:02:46]} Qh4 {[%emt 0:01:48]} 24. Bb3 {[%emt 0:02:45]} Qg4 {[%emt 0:08:13]} 25. Rf2 {[%emt 0:00:56]} d6 {[%emt 0:04:55]} 26. Bd4 {[%emt 0:03:15]} Rg6 {[%emt 0:00:27]} 27. Re1 {[%emt 0:06:39]} Reg8 {[%emt 0:03:11]} 28. Rfe2 {[%emt 0:00:12]} Kd8 {[%emt 0:10:32]} 29. Qe3 {[%emt 0:03:03]} Kc8 {[%emt 0:04:20]} 30. Bb6 {[%emt 0:01:11]} Qh4 {[%emt 0:06:24]} 31. Bxc7 {[%emt 0:03:16]} Kxc7 {[%emt 0:00:19]} 32. Qe7+ {[%emt 0:00:08]} Qxe7 {[%emt 0:00:24]} 33. Rxe7+ {[%emt 0:00:02]} Kb6 {[%emt 0:00:16]} 34. g3 {[%emt 0:00:18]} a5 {[%emt 0:00:37]} 35. a3 {[%emt 0:00:16]} b4 {[%emt 0:00:39]} 36. axb4 {[%emt 0:01:00]} axb4 {[%emt 0:00:19]} 37. Rxh7 {[%emt 0:00:07]} bxc3 {[%emt 0:00:20]} 38. bxc3 {[%emt 0:00:35]} R8g7 {[%emt 0:00:31]} 39. Rxg7 {[%emt 0:00:11]} Rxg7 {[%emt 0:00:05]} 40. Re6 {[%emt 0:04:18]} Kc5 {[%emt 0:00:16]} 41. c4 {[%emt 0:30:52]} Bc8 {[%emt 0:30:21]} 42. Re8 {[%emt 0:02:09]} Bd7 {[%emt 0:00:57]} 43. Rd8 {[%emt 0:02:40]} Kb4 {[%emt 0:00:19]} 44. Ba2 {[%emt 0:01:19]} Ka3 {[%emt 0:00:16]} 45. Ra8+ {[%emt 0:00:13]} Kb2 {[%emt 0:00:26]} 46. Kg2 {[%emt 0:09:01]} Re7 {[%emt 0:00:09]} 47. Kf3 {[%emt 0:00:44]} Be8 {[%emt 0:00:11]} 48. h3 {[%emt 0:00:25]} Bg6 {[%emt 0:03:08]} 49. Ra6 $18 {[%emt 0:01:40]} Bf7 {[%emt 0:01:52]} 50. c5 {[%emt 0:01:14]} Rc7 {[%emt 0:05:30]} 51. cxd6 {[%emt 0:02:05]} Rc3+ {[%emt 0:00:11]} 52. Kf2 {[%emt 0:00:22]} Be8 {[%emt 0:00:47]} 53. Ra7 {[%emt 0:00:15]} Rc2+ {[%emt 0:00:48]} 54. Ke3 {[%emt 0:00:49]} Rc3+ {[%emt 0:00:07]} 55. Kd4 {[%emt 0:01:06]} Rxg3 {[%emt 0:00:34]} 56. Bc4 {[%emt 0:00:09]} Rxh3 {[%emt 0:00:30]} 57. d7 {[%emt 0:00:07]} Bxd7 {[%emt 0:00:31]} 58. Rxd7 1-0

[Event "83rd ESP-ch Women-ch 2018"]
[Site "Linares"]
[Date "2018.08.22"]
[Round "3"]
[White "Nunez, Daniela Alejandra"]
[Black "Arroyo Rodriguez, Jesus"]
[Result "1-0"]
[ECO "B27"]
[WhiteElo "2021"]
[BlackElo "2099"]
[Annotator "NA"]
[PlyCount "97"]
[EventDate "2018.08.09"]
[EventType "tourn"]
[EventCountry "ESP"]
[SourceTitle "playchess.com"]
[Source "ChessBase"]
[SourceQuality "1"]
[TimeControl "40/5400+30:1800+30"]

1. e4 {[%emt 0:00:00]} c5 {[%emt 0:08:32]} 2. Nf3 {[%emt 0:00:04]} g6 {[%emt 0:00:06]} 3. d4 {[%emt 0:00:06]} cxd4 {[%emt 0:00:05]} 4. c3 {[%emt 0:00:02]} Bg7 {[%emt 0:03:44]} 5. Bc4 {[%emt 0:00:04]} Nf6 {[%emt 0:01:04] B27: Sicilian: 2 Nf3, unusual Black 2nd moves} (5... d3 6. O-O Nc6 7. a4 Nf6 8. e5 Ng4 9. Bxf7+ Kxf7 10. Ng5+ Kg8 11. Qxg4 Nxe5 12. Qg3 h6 13. f4 hxg5 14. fxe5 {1-0 (39) Dragnev,V (2438)-Vorobiov,E (2581) Bad Wiessee 2016}) 6. e5 {[%emt 0:02:42]} Ng8 {[%emt 0:02:49]} 7. cxd4 {[%emt 0:14:36]} d5 {[%emt 0:07:13]} 8. Bb5+ {[%emt 0:00:45]} Nc6 {[%emt 0:02:26]} 9. h3 $146 {[%emt 0:00:11]} ({Predecessor:} 9. O-O Nh6 10. Nc3 O-O 11. h3 a6 12. Bd3 {1-0 (34) Todortsev,V (1950)-Delaney,W (1800) San Francisco 2012}) 9... e6 {[%emt 0:08:48]} 10. Nc3 {[%emt 0:01:45]} Bd7 {[%emt 0:00:44]} 11. Bg5 {[%emt 0:07:54]} f6 {[%emt 0:01:01]} 12. exf6 {[%emt 0:00:05]} Nxf6 {[%emt 0:00:43]} 13. O-O {[%emt 0:06:28]} O-O {[%emt 0:02:52]} 14. Qd2 {[%emt 0:04:21]} a6 {[%emt 0:11:49]} 15. Bd3 {[%emt 0:09:14]} b5 {[%emt 0:01:49]} 16. Ne2 {[%emt 0:03:33]} Qb6 {[%emt 0:01:03]} 17. Qe3 {[%emt 0:01:40]} Rae8 {[%emt 0:03:35]} 18. Ne5 {[%emt 0:01:51]} Nxe5 {[%emt 0:01:51]} 19. dxe5 {[%emt 0:00:08]} Qxe3 {[%emt 0:00:16]} 20. Bxe3 {[%emt 0:00:07]} Ne4 {[%emt 0:01:11]} 21. f3 {[%emt 0:00:17]} d4 {[%emt 0:00:51]} 22. Bxd4 {[%emt 0:00:10]} Nd2 {[%emt 0:01:16]} 23. Rfd1 {[%emt 0:04:07]} Nc4 {[%emt 0:01:56]} 24. f4 {[%emt 0:02:23]} Rc8 {[%emt 0:01:20]} 25. h4 {[%emt 0:06:07]} Bc6 {[%emt 0:01:16]} 26. b3 {[%emt 0:00:22]} Na5 {[%emt 0:00:21]} 27. Bb6 {[%emt 0:00:09]} Nb7 {[%emt 0:00:16]} 28. Rac1 {[%emt 0:01:16]} Bd5 {[%emt 0:01:01]} 29. g3 {[%emt 0:00:24]} Rfe8 {[%emt 0:01:17]} 30. b4 {[%emt 0:14:32]} Bf8 {[%emt 0:10:48]} 31. a3 {[%emt 0:01:01]} Bb3 {[%emt 0:02:05]} 32. Re1 {[%emt 0:02:42]} Kf7 {[%emt 0:02:01]} 33. Be4 {[%emt 0:02:36]} Bd5 {[%emt 0:00:47]} 34. Nc3 {[%emt 0:04:24]} Bc6 {[%emt 0:02:14]} 35. Kf2 {[%emt 0:05:05]} Be7 {[%emt 0:01:10]} 36. Red1 {[%emt 0:00:56]} a5 {[%emt 0:04:25]} 37. bxa5 {[%emt 0:02:47]} Bxa3 $18 {[%emt 0:00:22]} 38. Rb1 {[%emt 0:00:17]} Bc5+ {[%emt 0:11:50]} 39. Bxc5 {[%emt 0:02:44]} Nxc5 {[%emt 0:00:02]} 40. Bxc6 {[%emt 0:00:10]} Rxc6 {[%emt 0:00:11]} 41. Nxb5 {[%emt 0:30:39]} Ra8 {[%emt 0:30:24]} 42. Nd6+ {[%emt 0:00:11]} Kf8 {[%emt 0:01:35]} 43. Rb5 {[%emt 0:00:21]} Rxd6 {[%emt 0:00:56]} 44. Rxd6 {[%emt 0:01:39]} Ne4+ {[%emt 0:00:13]} 45. Ke3 {[%emt 0:00:13]} Nxd6 {[%emt 0:00:09]} 46. exd6 {[%emt 0:00:04]} Ke8 {[%emt 0:01:07]} 47. Kd4 {[%emt 0:00:22]} Kd7 {[%emt 0:00:24]} 48. Ke5 {[%emt 0:00:14]} Ra7 {[%emt 0:00:17]} 49. Rc5 {[%emt 0:00:07]} 1-0

[Event "83rd ESP-ch Women-ch 2018"]
[Site "Linares"]
[Date "2018.08.22"]
[Round "3"]
[White "Ortin Blanco, Ainhoa"]
[Black "Esquivias Quintero, Luis Manuel"]
[Result "0-1"]
[ECO "A40"]
[WhiteElo "1951"]
[BlackElo "2260"]
[Annotator "NA"]
[PlyCount "72"]
[EventDate "2018.08.09"]
[EventType "tourn"]
[EventCountry "ESP"]
[SourceTitle "playchess.com"]
[Source "ChessBase"]
[SourceQuality "1"]
[TimeControl "40/5400+30:1800+30"]

1. d4 {[%emt 0:00:00]} e6 {[%emt 0:00:00]} 2. c4 {[%emt 0:00:00]} b6 {[%emt 0:00:00]} 3. e4 {[%emt 0:00:03]} Bb7 {[%emt 0:00:00]} 4. Bd3 {[%emt 0:00:12]} Nc6 {[%emt 0:00:00]} 5. Ne2 {[%emt 0:00:18]} Nb4 {[%emt 0:00:00]} 6. Nbc3 {[%emt 0:00:16] A40: Unusual replies to 1 d4} Nxd3+ {[%emt 0:00:00]} 7. Qxd3 {[%emt 0:00:05]} d6 {[%emt 0:00:48]} (7... Ne7 8. O-O d6 9. Be3 Qd7 10. d5 Ng6 11. f4 Be7 12. Bd4 e5 13. fxe5 dxe5 {0-1 (49) Matlakov,M (2728)-Andreikin,D (2706) Tbilisi 2017}) 8. O-O {[%emt 0:01:00]} g6 {[%emt 0:00:16]} 9. d5 {[%emt 0:02:05]} Bg7 {[%emt 0:02:34]} 10. f4 {[%emt 0:01:16]} Ne7 {[%emt 0:01:10]} 11. Nd4 {[%emt 0:05:08]} exd5 {[%emt 0:04:37]} 12. cxd5 {[%emt 0:02:22]} O-O {[%emt 0:02:58]} 13. Be3 {[%emt 0:02:14]} c5 $146 {[%emt 0:07:46]} ({Predecessor:} 13... Bxd4 14. Bxd4 {½-½ (32) Taras,I (2334)-Vecek,M (2320) ICCF email 2016}) 14. dxc6 {[%emt 0:03:11]} Nxc6 {[%emt 0:00:05]} 15. Rad1 {[%emt 0:02:22]} Nb4 {[%emt 0:05:59]} 16. Qc4 {[%emt 0:01:53]} a5 {[%emt 0:02:46]} 17. Qb3 {[%emt 0:04:51]} Ba6 {[%emt 0:14:00]} 18. Rf3 {[%emt 0:01:11]} Rc8 {[%emt 0:07:18]} 19. Rd2 {[%emt 0:07:48]} Bc4 {[%emt 0:05:58]} 20. Qa4 {[%emt 0:00:44]} Nd3 {[%emt 0:06:23]} 21. Qd1 {[%emt 0:09:15]} Nc5 {[%emt 0:02:10]} 22. Rg3 {[%emt 0:08:43]} Qe7 {[%emt 0:05:07]} 23. b3 {[%emt 0:09:17]} Ba6 {[%emt 0:00:19]} 24. Nd5 {[%emt 0:05:15]} Qb7 {[%emt 0:03:09]} 25. Nf5 {[%emt 0:11:01]} gxf5 {[%emt 0:10:31]} 26. Bd4 {[%emt 0:14:25]} f6 $1 {[%emt 0:00:19]} 27. Bxf6 {[%emt 0:01:09]} Rf7 {[%emt 0:01:19]} 28. e5 {[%emt 0:05:59]} Ne4 {[%emt 0:01:52]} 29. exd6 {[%emt 0:01:21]} Nxf6 {[%emt 0:01:15]} 30. Nxf6+ {[%emt 0:00:57]} Rxf6 {[%emt 0:00:21]} 31. d7 {[%emt 0:00:33]} Rd8 {[%emt 0:00:06]} 32. Qa1 {[%emt 0:00:34]} Rf7 {[%emt 0:02:39]} 33. Qe5 {[%emt 0:00:28]} Qe4 $19 {[%emt 0:01:51]} 34. Qa1 {[%emt 0:00:31]} Rdxd7 {[%emt 0:01:38]} 35. Qd1 {[%emt 0:00:31]} Rxd2 {[%emt 0:01:18]} 36. Qxd2 {[%emt 0:00:04]} Qb1+ {[%emt 0:00:08]} 0-1

[Event "83rd ESP-ch Women-ch 2018"]
[Site "Linares"]
[Date "2018.08.23"]
[Round "4"]
[White "Orantes Taboada, Francisco"]
[Black "Suarez Uriel, Adrian"]
[Result "0-1"]
[ECO "C41"]
[WhiteElo "2242"]
[BlackElo "2391"]
[Annotator "NA RC"]
[PlyCount "82"]
[EventDate "2018.08.09"]
[EventType "tourn"]
[EventCountry "ESP"]
[SourceTitle "playchess.com"]
[Source "ChessBase"]
[SourceQuality "1"]
[TimeControl "40/5400+30:1800+30"]

1. e4 {[%emt 0:00:00]} d6 {[%emt 0:00:00]} 2. d4 {[%emt 0:00:00]} Nf6 {[%emt 0:00:00]} 3. Nc3 {[%emt 0:00:03]} e5 {[%emt 0:00:00]} 4. Nf3 {[%emt 0:00:28]} Nbd7 {[%emt 0:00:00]} 5. dxe5 {[%emt 0:00:29]} dxe5 {[%emt 0:01:06]} 6. Bc4 {[%emt 0:00:15]} Bc5 {[%emt 0:00:38] C41: Philidor-Verteidigung} 7. O-O {[%emt 0:01:16]} O-O {[%emt 0:00:07]} 8. a4 {[%emt 0:00:10]} c6 {[%emt 0:01:46]} 9. Bg5 {[%emt 0:13:39]} h6 {[%emt 0:04:36]} 10. Bd2 {[%emt 0:13:03]} a5 {[%emt 0:01:17]} 11. Qe2 {[%emt 0:10:49]} Re8 $146 {[%emt 0:02:36]} ({Vorgänger:} 11... Nh5 12. Bb3 Qf6 13. Ne1 Nf4 14. Qf3 {0-1 (50) Blasl,D (2119)-Moser,E (2361) Schwarzach 2005}) 12. Rad1 {[%emt 0:08:08]} Qb6 {[%emt 0:12:34]} 13. Nh4 {[%emt 0:04:54]} Nf8 {[%emt 0:00:11]} 14. Nf5 {[%emt 0:00:27]} Be6 {[%emt 0:01:57]} 15. Bxe6 {[%emt 0:01:45]} Nxe6 {[%emt 0:00:45]} 16. Qf3 {[%emt 0:03:08]} Nd4 {[%emt 0:11:12]} 17. Nxh6+ {[%emt 0:01:19]} gxh6 {[%emt 0:00:03]} 18. Qxf6 {[%emt 0:01:44]} Re6 {[%emt 0:00:02]} 19. Qh4 {[%emt 0:00:41]} Qxb2 {[%emt 0:00:55]} 20. Kh1 {[%emt 0:07:51]} Qxc2 {[%emt 0:16:52]} 21. f4 {[%emt 0:00:31]} exf4 {[%emt 0:00:13]} 22. Rxf4 {[%emt 0:00:46]} Rg6 {[%emt 0:00:51]} 23. Rg4 {[%emt 0:00:32]} Qb3 {[%emt 0:10:55]} 24. Rf1 {[%emt 0:02:19]} Qe6 {[%emt 0:00:41]} 25. Rxg6+ {[%emt 0:16:58]} fxg6 {[%emt 0:00:12]} 26. Bxh6 {[%emt 0:02:22]} Be7 {[%emt 0:01:12]} 27. Bg5 {[%emt 0:01:28]} Rf8 {[%emt 0:00:42]} 28. Rxf8+ {[%emt 0:02:48]} Bxf8 {[%emt 0:00:02]} 29. Bf6 {[%emt 0:00:46]} Nc2 {[%emt 0:06:35]} 30. e5 {[%emt 0:03:45]} Bg7 {[%emt 0:02:26]} 31. Ne4 {[%emt 0:01:46]} Qc4 {[%emt 0:03:29]} 32. h3 {[%emt 0:00:59]} Ne3 {[%emt 0:00:15]} 33. Qf2 {[%emt 0:00:47]} Qxe4 {[%emt 0:00:13]} 34. Bxg7 {[%emt 0:00:04]} Qxg2+ {[%emt 0:02:50]} 35. Qxg2 {[%emt 0:00:02]} Nxg2 {[%emt 0:00:06]} 36. Bf6 {[%emt 0:00:02]} Ne3 {[%emt 0:00:20]} 37. e6 {[%emt 0:00:33]} b5 {[%emt 0:00:23]} 38. Kh2 {[%emt 0:01:33]} bxa4 {[%emt 0:01:00]} 39. Kg3 {[%emt 0:00:17]} a3 {[%emt 0:00:57]} 40. Kh4 {[%emt 0:00:21]} Nd5 $19 {[%emt 0:00:51]} 41. Ba1 {[%emt 0:30:17]} Nf4 {[%emt 0:32:07]} 0-1

[Event "83rd ESP-ch Women-ch 2018"]
[Site "Linares"]
[Date "2018.08.23"]
[Round "4"]
[White "Perez Perez, Gabriel"]
[Black "Rodriguez Redondo, Adhara"]
[Result "0-1"]
[ECO "A14"]
[WhiteElo "2058"]
[BlackElo "1909"]
[Annotator "NA RC"]
[PlyCount "120"]
[EventDate "2018.08.09"]
[EventType "tourn"]
[EventCountry "ESP"]
[SourceTitle "playchess.com"]
[Source "ChessBase"]
[SourceQuality "1"]
[TimeControl "40/5400+30:1800+30"]

1. c4 {[%emt 0:00:00]} e6 {[%emt 0:01:19]} 2. g3 {[%emt 0:00:03]} d5 {[%emt 0:00:17]} 3. Bg2 {[%emt 0:00:08]} Nf6 {[%emt 0:00:30]} 4. Nf3 {[%emt 0:01:03]} Be7 {[%emt 0:02:07]} 5. O-O {[%emt 0:00:48]} O-O {[%emt 0:00:46]} 6. b3 {[%emt 0:02:32]} Nbd7 {[%emt 0:03:33]} 7. Bb2 {[%emt 0:00:22]} b6 {[%emt 0:01:47]} 8. Nc3 {[%emt 0:19:09]} Bb7 {[%emt 0:00:48]} 9. d4 {[%emt 0:00:42]} Rc8 {[%emt 0:06:58]} 10. Rc1 {[%emt 0:03:50]} c6 {[%emt 0:03:18]} 11. Qd3 {[%emt 0:10:17] E07: Closed Catalan: Main Line (5 Nf3 0-0 6 0-0 Nbd7)} Rc7 {[%emt 0:04:44]} 12. Nd2 $146 {[%emt 0:12:40]} ({Predecessor:} 12. cxd5 cxd5 13. Ne5 Nxe5 14. dxe5 Nd7 15. Qd2 Nxe5 16. Nxd5 Bxd5 17. Bxe5 Rxc1 18. Rxc1 Bxg2 19. Qxd8 Rxd8 20. Kxg2 {½-½ (31) Horvath,C (2514)-Buhmann,R (2594) Austria 2013}) 12... Qb8 {[%emt 0:09:37]} 13. e4 {[%emt 0:01:45]} dxe4 {[%emt 0:07:33]} 14. Ndxe4 {[%emt 0:00:04]} Rd8 {[%emt 0:10:15]} 15. Qe3 {[%emt 0:14:29]} Nxe4 {[%emt 0:14:10]} 16. Nxe4 {[%emt 0:00:11]} Qa8 {[%emt 0:04:05]} 17. Qf4 {[%emt 0:01:59]} Rcc8 {[%emt 0:02:14]} 18. Rfd1 {[%emt 0:13:06]} Qb8 {[%emt 0:05:16]} 19. Qe3 {[%emt 0:05:12]} Nf6 {[%emt 0:04:55]} 20. Ng5 {[%emt 0:01:31]} Ng4 {[%emt 0:03:32]} 21. Qd2 {[%emt 0:00:02]} h6 {[%emt 0:02:37]} 22. Ne4 {[%emt 0:03:50]} Nf6 {[%emt 0:02:18]} 23. Nc3 {[%emt 0:00:06]} Rd7 {[%emt 0:02:29]} 24. Qe2 {[%emt 0:01:59]} Rcd8 {[%emt 0:01:13]} 25. Re1 {[%emt 0:03:33]} c5 {[%emt 0:02:58]} 26. d5 {[%emt 0:00:13]} exd5 {[%emt 0:00:07]} 27. Bh3 {[%emt 0:01:27]} d4 {[%emt 0:01:32]} 28. Nd5 {[%emt 0:00:05]} Nxd5 {[%emt 0:01:10]} 29. Bxd7 {[%emt 0:00:10]} Rxd7 {[%emt 0:00:34]} 30. cxd5 {[%emt 0:00:09]} Bxd5 {[%emt 0:00:43]} 31. f3 {[%emt 0:01:12]} Qb7 {[%emt 0:00:24]} 32. Rf1 {[%emt 0:00:33]} Rd6 {[%emt 0:00:50]} 33. Rce1 {[%emt 0:00:47]} Re6 {[%emt 0:00:32]} 34. Qd3 {[%emt 0:00:45]} Rf6 {[%emt 0:01:15]} 35. Bc1 {[%emt 0:01:37]} Qd7 {[%emt 0:00:30]} 36. Bf4 {[%emt 0:00:30]} Rg6 {[%emt 0:00:30]} 37. Rf2 {[%emt 0:00:30]} Be6 {[%emt 0:00:32]} 38. Kh1 {[%emt 0:00:25]} Bf5 {[%emt 0:00:26]} 39. Qd2 {[%emt 0:00:01]} Kh7 {[%emt 0:00:33]} 40. Rfe2 {[%emt 0:00:47]} Bf6 {[%emt 0:00:22]} 41. Re8 {[%emt 0:30:20]} Qc6 {[%emt 0:30:30]} 42. Kg2 {[%emt 0:01:08]} Be6 {[%emt 0:00:32]} 43. Rb8 {[%emt 0:00:04]} Be7 {[%emt 0:00:33]} 44. Qd3 {[%emt 0:00:22]} Bd6 {[%emt 0:00:31]} 45. Bxd6 {[%emt 0:01:04]} Qxd6 {[%emt 0:00:04]} 46. Ra8 {[%emt 0:00:42]} Qd7 {[%emt 0:00:53]} 47. Qa6 {[%emt 0:00:36]} Bh3+ {[%emt 0:00:30]} 48. Kf2 {[%emt 0:00:13]} Rf6 {[%emt 0:00:36]} (48... b5 $142 49. Qxa7 Qd5) 49. Ree8 {[%emt 0:00:25]} Qf5 {[%emt 0:00:29]} 50. f4 {[%emt 0:01:02]} Bg4 {[%emt 0:00:25]} 51. Qf1 {[%emt 0:00:25]} Qc2+ {[%emt 0:00:34]} 52. Kg1 {[%emt 0:00:02]} Qxa2 {[%emt 0:00:29]} 53. Rh8+ {[%emt 0:00:41]} Kg6 {[%emt 0:00:05]} 54. Rad8 {[%emt 0:00:31]} Qxb3 {[%emt 0:00:22]} 55. Rhe8 {[%emt 0:00:40]} Re6 {[%emt 0:00:46]} 56. Rxe6+ $19 {[%emt 0:00:20]} Qxe6 {[%emt 0:00:08]} 57. Qc1 {[%emt 0:00:51]} Qe4 {[%emt 0:00:37]} 58. Rd6+ {[%emt 0:00:13]} Kh7 {[%emt 0:00:08]} 59. Qd2 {[%emt 0:00:31]} Bh3 {[%emt 0:00:15]} 60. f5 {[%emt 0:00:23]} Qb1+ {[%emt 0:00:12]} 0-1

[Event "83rd ESP-ch Women-ch 2018"]
[Site "Linares"]
[Date "2018.08.24"]
[Round "5"]
[White "Matnadze, Ana"]
[Black "Garcia Garcia, Adrian Antonio"]
[Result "1/2-1/2"]
[ECO "A04"]
[WhiteElo "2378"]
[BlackElo "2179"]
[Annotator "NA"]
[PlyCount "75"]
[EventDate "2018.08.09"]
[EventType "tourn"]
[EventCountry "ESP"]
[SourceTitle "playchess.com"]
[Source "ChessBase"]
[SourceQuality "1"]
[TimeControl "40/5400+30:1800+30"]

1. Nf3 {[%emt 0:00:00]} f5 {[%emt 0:00:00]} 2. g3 {[%emt 0:00:03]} Nf6 {[%emt 0:00:00]} 3. d4 {[%emt 0:00:04]} g6 {[%emt 0:00:00]} 4. Bg2 {[%emt 0:00:04]} Bg7 {[%emt 0:00:00]} 5. O-O {[%emt 0:00:08] A81: Holländische Verteidigung (Leningrader Variante)} d5 {[%emt 0:00:00]} (5... O-O 6. c4 d6 7. Nc3 c6 8. Qb3 Na6 9. Rd1 Kh8 10. Bf4 Nc7 11. d5 c5 12. Qc2 Qe8 13. Rab1 h6 14. a3 g5 15. Bc1 Bd7 16. b4 b6 17. bxc5 bxc5 {1-0 (41) Kuzubov,Y (2660)-Cheparinov,I (2712) Ankara 2018}) 6. c4 {[%emt 0:00:36]} e6 {[%emt 0:00:01]} 7. b3 {[%emt 0:01:18]} O-O {[%emt 0:00:07]} 8. Bb2 {[%emt 0:00:03]} Ne4 {[%emt 0:01:06]} 9. Ne1 {[%emt 0:02:44]} c6 {[%emt 0:07:35]} 10. e3 {[%emt 0:02:20]} Nd7 {[%emt 0:00:50]} 11. Nd3 {[%emt 0:01:07]} b6 $146 {[%emt 0:01:35]} ({Vorgänger:} 11... Ndf6 12. f3 Nd6 13. Nd2 Nf7 14. Qe2 Bd7 15. e4 dxe4 16. fxe4 Qc7 {1-0 (30) Zessinger,R-Schulz,J Coburg 1975}) 12. Qc2 {[%emt 0:01:56]} Bb7 {[%emt 0:00:36]} 13. a4 {[%emt 0:00:38]} g5 {[%emt 0:00:22]} 14. a5 {[%emt 0:01:45]} bxa5 {[%emt 0:05:30]} 15. f3 {[%emt 0:01:51]} Nef6 {[%emt 0:02:44]} 16. Nc3 {[%emt 0:01:21]} Qc7 {[%emt 0:04:22]} 17. Rfc1 {[%emt 0:05:05]} Rac8 {[%emt 0:03:51]} 18. Na4 {[%emt 0:01:15]} Ba8 {[%emt 0:08:01]} 19. f4 {[%emt 0:02:40]} Ne4 {[%emt 0:01:41]} 20. Bxe4 {[%emt 0:10:11]} dxe4 {[%emt 0:02:36]} 21. Ndc5 {[%emt 0:00:07]} Rce8 {[%emt 0:02:59]} 22. fxg5 {[%emt 0:04:29]} Nxc5 {[%emt 0:02:08]} 23. Nxc5 {[%emt 0:00:08]} e5 {[%emt 0:00:20]} 24. dxe5 {[%emt 0:03:30]} Bxe5 {[%emt 0:00:07]} 25. Rd1 {[%emt 0:03:49]} Rf7 {[%emt 0:01:57]} 26. Bc3 {[%emt 0:06:00]} Bxg3 $2 {[%emt 0:09:02]} (26... Bxc3 27. Qxc3 Bb7 28. Qxa5 Qe7 29. Qxa7 Qxg5) 27. Na6 $18 {[%emt 0:00:24]} Qb6 {[%emt 0:02:03]} 28. c5 {[%emt 0:02:31]} Qxa6 {[%emt 0:05:15]} 29. hxg3 {[%emt 0:00:09]} Qb7 {[%emt 0:00:57]} 30. Qd2 {[%emt 0:02:28]} Qc7 {[%emt 0:03:32]} 31. Kg2 {[%emt 0:00:15]} Rb8 {[%emt 0:05:08]} 32. Qd4 {[%emt 0:02:41]} Kf8 {[%emt 0:00:02]} 33. Rxa5 {[%emt 0:01:12]} f4 {[%emt 0:01:57]} 34. gxf4 {[%emt 0:02:00]} Rxb3 {[%emt 0:01:08]} 35. Qh8+ {[%emt 0:03:12]} Ke7 {[%emt 0:00:34]} 36. Rd6 {[%emt 0:00:31]} Rxc3 {[%emt 0:03:52]} 37. Qxc3 {[%emt 0:00:44]} Kf8 {[%emt 0:00:38]} 38. Qh8+ {[%emt 0:00:07]} 1/2-1/2

[Event "83rd ESP-ch Women-ch 2018"]
[Site "Linares"]
[Date "2018.08.24"]
[Round "5"]
[White "Moral Garcia, Serafin"]
[Black "Vega Gutierrez, Sabrina Neide"]
[Result "0-1"]
[ECO "B46"]
[WhiteElo "2287"]
[BlackElo "2390"]
[Annotator "NA"]
[PlyCount "54"]
[EventDate "2018.08.09"]
[EventType "tourn"]
[EventCountry "ESP"]
[SourceTitle "playchess.com"]
[Source "ChessBase"]
[SourceQuality "1"]
[TimeControl "40/5400+30:1800+30"]

1. e4 {[%emt 0:00:00]} c5 {[%emt 0:00:00]} 2. Nf3 {[%emt 0:00:00]} e6 {[%emt 0:00:00]} 3. d4 {[%emt 0:00:26]} cxd4 {[%emt 0:00:00]} 4. Nxd4 {[%emt 0:00:05]} Nc6 {[%emt 0:00:00]} 5. Nc3 {[%emt 0:00:49]} a6 {[%emt 0:00:06]} 6. Be3 {[%emt 0:01:02]} Nf6 {[%emt 0:00:16]} 7. f3 {[%emt 0:02:06] B46: Sizilianisch (Paulsen/Taimanow-Variante)} (7. Nxc6 bxc6 8. e5 Nd5 9. Nxd5 cxd5 10. Qd4 Bb7 11. Bd3 Rc8 12. O-O Qc7 13. c3 Bc5 14. Qxc5 Qxc5 15. Bxc5 Rxc5 {½-½ (32) Yu,Y (2759)-Svidler,P (2753) Shenzhen 2018}) 7... Bb4 {[%emt 0:08:18]} 8. Nxc6 {[%emt 0:06:55]} bxc6 {[%emt 0:00:59]} 9. a3 {[%emt 0:03:00]} Be7 {[%emt 0:01:30]} 10. e5 {[%emt 0:03:58]} Nd5 {[%emt 0:00:11]} 11. Nxd5 {[%emt 0:00:35]} cxd5 {[%emt 0:00:19]} 12. Bd3 {[%emt 0:04:25]} d6 $146 {[%emt 0:04:20]} ({Vorgänger:} 12... Qc7 13. f4 Bc5 {½-½ (24) Boudre,J (2343)-Midoux,S (2352) France 2009}) 13. Bd4 {[%emt 0:02:52]} Bh4+ {[%emt 0:01:14]} 14. g3 {[%emt 0:01:47]} dxe5 {[%emt 0:00:12]} 15. Bxe5 {[%emt 0:00:44]} Bf6 {[%emt 0:00:19]} 16. Qe2 {[%emt 0:01:11]} O-O {[%emt 0:07:39]} 17. f4 {[%emt 0:02:58]} Bxe5 {[%emt 0:05:12]} 18. Qxe5 {[%emt 0:02:12]} Qb6 {[%emt 0:01:13]} 19. O-O-O {[%emt 0:04:09]} Rb8 {[%emt 0:00:24]} 20. b3 {[%emt 0:01:31]} Bd7 {[%emt 0:01:01]} 21. Kb1 {[%emt 0:05:54]} Rfc8 {[%emt 0:12:58]} 22. Rhe1 {[%emt 0:03:30]} Ba4 $15 {[%emt 0:14:28]} 23. Qb2 {[%emt 0:02:00]} g6 {[%emt 0:02:05]} 24. h4 {[%emt 0:01:24]} d4 {[%emt 0:05:31]} 25. Bf1 {[%emt 0:19:26]} Rc3 {[%emt 0:01:02]} 26. Rd3 {[%emt 0:00:04]} Bxb3 {[%emt 0:00:47]} 27. Ka1 {[%emt 0:01:09]} Rxc2 {[%emt 0:03:35]} 0-1